fUST/lending_fUST_20260607
["ID","MTS","AMOUNT","RATE_DAILY","PERIOD"]
[424374664,1780815038000,-151.5,0.00018703,2]
[424374666,1780815038000,-223.05544451,0.00018703,2]
[424374665,1780815038000,-151.5,0.00018703,2]
[424374676,1780815038000,-500.0,0.00018703,2]
[424374670,1780815038000,-201.09034158,0.00018703,2]
[424374668,1780815038000,-151.5,0.00018703,2]
[424374667,1780815038000,-201.1840783,0.00018703,2]
[424374673,1780815038000,-159.8047406,0.00018703,2]
[424374671,1780815038000,-151.5,0.00018703,2]
[424374675,1780815038000,-500.0,0.00018703,2]
[424374672,1780815038000,-208.5323743,0.00018703,2]
[424374669,1780815038000,-151.5,0.00018703,2]
[424374642,1780815038000,-1000.0,0.00018428,5]
[424374677,1780815038000,-500.0,0.00018703,2]
[424374662,1780815038000,-151.5,0.00018703,2]
[424374657,1780815038000,-893.77007388,0.0001856,7]
[424374674,1780815038000,-155.52652587,0.00018703,2]
[424374660,1780815038000,-284.90721039,0.00018703,2]
[424374663,1780815038000,-218.55433584,0.00018703,2]
[424374644,1780815038000,-244.126795,0.00018503,2]
[424374643,1780815038000,-167.13818255,0.00018462,2]
[424374650,1780815038000,-244.126795,0.00018503,2]
[424374648,1780815038000,-244.126795,0.00018503,2]
[424374647,1780815038000,-244.126795,0.00018503,2]
[424374645,1780815038000,-244.126795,0.00018503,2]
[424374651,1780815038000,-244.126795,0.00018503,2]
[424374646,1780815038000,-244.126795,0.00018503,2]
[424374652,1780815038000,-963819.99486074,0.00018503,2]
[424374654,1780815038000,-30225.32333692,0.00018503,2]
[424374655,1780815038000,-161680.67865245,0.00018503,2]
[424374653,1780815038000,-1027.62177098,0.00018503,2]
[424374656,1780815038000,-489.119275,0.00018517,2]
[424374658,1780815038000,-582.48,0.00018603,2]
[424374649,1780815038000,-244.126795,0.00018503,2]
[424374659,1780815038000,-684.96,0.0001863,2]
[424374699,1780815039000,-244.126795,0.00018703,2]
[424374697,1780815039000,-556.07249584,0.00018703,2]
[424374700,1780815039000,-244.126795,0.00018703,2]
[424374696,1780815039000,-500.0,0.00018703,2]
[424374701,1780815039000,-244.126795,0.00018703,2]
[424374698,1780815039000,-244.126795,0.00018703,2]
[424374714,1780815039000,-500.0,0.00019178,2]
[424374704,1780815039000,-2207.0,0.00018854,2]
[424374707,1780815039000,-684.96,0.00018904,2]
[424374705,1780815039000,-186.0,0.00018854,2]
[424374706,1780815039000,-444.0,0.00018854,2]
[424374708,1780815039000,-500.0,0.00018977,2]
[424374693,1780815039000,-500.0,0.00018703,2]
[424374702,1780815039000,-500.0,0.00018703,2]
[424374695,1780815039000,-500.0,0.00018703,2]
[424374687,1780815039000,-500.0,0.00018703,2]
[424374694,1780815039000,-500.0,0.00018703,2]
[424374709,1780815039000,-183.60536332,0.00018978,2]
[424374679,1780815039000,-500.0,0.00018703,2]
[424374689,1780815039000,-500.0,0.00018703,2]
[424374678,1780815039000,-500.0,0.00018703,2]
[424374680,1780815039000,-500.0,0.00018703,2]
[424374681,1780815039000,-500.0,0.00018703,2]
[424374691,1780815039000,-500.0,0.00018703,2]
[424374682,1780815039000,-500.0,0.00018703,2]
[424374688,1780815039000,-500.0,0.00018703,2]
[424374686,1780815039000,-500.0,0.00018703,2]
[424374684,1780815039000,-500.0,0.00018703,2]
[424374685,1780815039000,-500.0,0.00018703,2]
[424374690,1780815039000,-500.0,0.00018703,2]
[424374692,1780815039000,-500.0,0.00018703,2]
[424374683,1780815039000,-500.0,0.00018703,2]
[424374710,1780815039000,-2024.0,0.00019,2]
[424374703,1780815039000,-1424.531,0.00018854,2]
[424374711,1780815039000,-262.381,0.00019163,2]
[424374731,1780815039000,-585.42,0.00019178,2]
[424374732,1780815039000,-500.0,0.00019178,2]
[424374737,1780815039000,-1747.89,0.00019178,2]
[424374736,1780815039000,-500.0,0.00019178,2]
[424374733,1780815039000,-500.0,0.00019178,2]
[424374729,1780815039000,-550.39,0.00019178,2]
[424374730,1780815039000,-500.0,0.00019178,2]
[424374738,1780815039000,-1056.93,0.00019178,2]
[424374735,1780815039000,-500.0,0.00019178,2]
[424374739,1780815039000,-500.0,0.00019178,2]
[424374741,1780815039000,-500.0,0.00019178,2]
[424374743,1780815039000,-500.0,0.00019178,2]
[424374742,1780815039000,-977.9,0.00019178,2]
[424374744,1780815039000,-500.0,0.00019178,2]
[424374734,1780815039000,-542.88,0.00019178,2]
[424374712,1780815039000,-2269.6571,0.00019178,2]
[424374740,1780815039000,-562.7,0.00019178,2]
[424374725,1780815039000,-2772.49,0.00019178,2]
[424374745,1780815039000,-1053.30713502,0.00019178,2]
[424374713,1780815039000,-851.1183,0.00019178,2]
[424374715,1780815039000,-500.0,0.00019178,2]
[424374717,1780815039000,-500.0,0.00019178,2]
[424374719,1780815039000,-206.25561656,0.00019178,2]
[424374716,1780815039000,-500.0,0.00019178,2]
[424374728,1780815039000,-199.29841962,0.00019178,2]
[424374727,1780815039000,-956.26,0.00019178,2]
[424374721,1780815039000,-500.0,0.00019178,2]
[424374724,1780815039000,-500.0,0.00019178,2]
[424374720,1780815039000,-622.56,0.00019178,2]
[424374722,1780815039000,-500.0,0.00019178,2]
[424374723,1780815039000,-500.0,0.00019178,2]
[424374726,1780815039000,-500.0,0.00019178,2]
[424374718,1780815039000,-500.0,0.00019178,2]
[424374782,1780815043000,-563.34286498,0.00019178,2]
[424374783,1780815043000,-500.0,0.00019178,2]
[424374785,1780815043000,-436.65713502,0.00019178,2]
[424374784,1780815043000,-500.0,0.00019178,2]
[424374798,1780815046000,-500.0,0.00019178,2]
[424374796,1780815046000,-5000.0,0.00018986,2]
[424374797,1780815046000,-63.34286498,0.00019178,2]
[424374799,1780815046000,-650.60713502,0.00019178,2]
[424374803,1780815047000,-1625.37365892,0.00019178,2]
[424374800,1780815047000,-285.81286498,0.00019178,2]
[424374801,1780815047000,-500.0,0.00019178,2]
[424374802,1780815047000,-500.0,0.00019178,2]
[424374807,1780815309000,-229.21144354,0.0001205,2]
[424374808,1780815362000,-300.0,0.00012049,2]
[424374809,1780815416000,-500.0,0.00012049,2]
[424374810,1780815432000,21210.38050974,0.000232,120]
[424374811,1780815469000,-541.2381865,0.00011949,2]
[424374812,1780815481000,-1625.05685096,0.00011949,2]
[424374813,1780815534000,-307.63835922,0.00012048,2]
[424374815,1780815588000,-626.60108494,0.00012048,2]
[424374817,1780815641000,-500.0,0.00012048,2]
[424374819,1780815694000,-500.0,0.00012047,2]
[424374822,1780815748000,-822.14,0.00011947,2]
[424374826,1780815948000,-357.26982633,0.00011948,2]
[424374828,1780816026000,-224.68342672,0.00011848,2]
[424374830,1780816129000,-1635.71200437,0.00011848,2]
[424374832,1780816182000,-215.34685145,0.00011946,2]
[424374925,1780816236000,-500.0,0.00011946,2]
[424374926,1780816236000,-500.0,0.00011946,2]
[424374924,1780816236000,-500.0,0.00011946,2]
[424374923,1780816236000,-500.0,0.00011946,2]
[424374921,1780816236000,-218.2404742,0.00011946,2]
[424374922,1780816236000,-314.03709479,0.00011946,2]
[424374919,1780816236000,-518.01623558,0.00011946,2]
[424374918,1780816236000,-500.0,0.00011946,2]
[424374927,1780816236000,-500.0,0.00011946,2]
[424374920,1780816236000,-281.7595258,0.00011946,2]
[424374930,1780816236000,-500.0,0.00011946,2]
[424374939,1780816236000,-500.0,0.00011946,2]
[424374928,1780816236000,-500.0,0.00011946,2]
[424374929,1780816236000,-500.0,0.00011946,2]
[424374935,1780816236000,-500.0,0.00011946,2]
[424374938,1780816236000,-500.0,0.00011946,2]
[424374936,1780816236000,-500.0,0.00011946,2]
[424374940,1780816236000,-500.0,0.00011946,2]
[424374934,1780816236000,-500.0,0.00011946,2]
[424374932,1780816236000,-500.0,0.00011946,2]
[424374933,1780816236000,-500.0,0.00011946,2]
[424374931,1780816236000,-500.0,0.00011946,2]
[424374937,1780816236000,-500.0,0.00011946,2]
[424374961,1780816237000,-500.0,0.00011946,2]
[424374964,1780816237000,-500.0,0.00011946,2]
[424374962,1780816237000,-500.0,0.00011946,2]
[424374965,1780816237000,-500.0,0.00011946,2]
[424374966,1780816237000,-500.0,0.00011946,2]
[424374968,1780816237000,-500.0,0.00011946,2]
[424374967,1780816237000,-500.0,0.00011946,2]
[424374970,1780816237000,-500.0,0.00011946,2]
[424374972,1780816237000,-500.0,0.00011946,2]
[424374973,1780816237000,-500.0,0.00011946,2]
[424374959,1780816237000,-500.0,0.00011946,2]
[424374974,1780816237000,-500.0,0.00011946,2]
[424374971,1780816237000,-500.0,0.00011946,2]
[424374976,1780816237000,-500.0,0.00011946,2]
[424374977,1780816237000,-500.0,0.00011946,2]
[424374978,1780816237000,-500.0,0.00011946,2]
[424374969,1780816237000,-500.0,0.00011946,2]
[424374963,1780816237000,-500.0,0.00011946,2]
[424374956,1780816237000,-500.0,0.00011946,2]
[424374958,1780816237000,-500.0,0.00011946,2]
[424374981,1780816237000,-500.0,0.00011946,2]
[424374942,1780816237000,-500.0,0.00011946,2]
[424374941,1780816237000,-500.0,0.00011946,2]
[424374943,1780816237000,-500.0,0.00011946,2]
[424374944,1780816237000,-500.0,0.00011946,2]
[424374945,1780816237000,-500.0,0.00011946,2]
[424374946,1780816237000,-500.0,0.00011946,2]
[424374947,1780816237000,-500.0,0.00011946,2]
[424374948,1780816237000,-500.0,0.00011946,2]
[424374949,1780816237000,-291.18338531,0.00011946,2]
[424374951,1780816237000,-500.0,0.00011946,2]
[424374950,1780816237000,-500.0,0.00011946,2]
[424374952,1780816237000,-500.0,0.00011946,2]
[424374954,1780816237000,-500.0,0.00011946,2]
[424374955,1780816237000,-500.0,0.00011946,2]
[424374953,1780816237000,-500.0,0.00011946,2]
[424374957,1780816237000,-500.0,0.00011946,2]
[424374960,1780816237000,-500.0,0.00011946,2]
[424374980,1780816237000,-218.44933772,0.00011946,2]
[424374975,1780816237000,-500.0,0.00011946,2]
[424374982,1780816237000,-500.0,0.00011946,2]
[424375005,1780816237000,-500.0,0.00012598,2]
[424375004,1780816237000,-500.0,0.00012324,2]
[424375009,1780816237000,-500.0,0.00013698,2]
[424375008,1780816237000,-595.52855498,0.00013698,2]
[424375007,1780816237000,-500.0,0.00013146,2]
[424375010,1780816237000,-500.0,0.00013698,2]
[424375011,1780816237000,-500.0,0.00013698,2]
[424375013,1780816237000,-1000.0,0.00013699,2]
[424375016,1780816237000,-341.15723001,0.00014533,2]
[424375017,1780816237000,-244.559637,0.0001495,2]
[424375019,1780816237000,-500.0,0.00015799,2]
[424375014,1780816237000,-244.559637,0.00013789,2]
[424375020,1780816237000,-500.0,0.00015799,2]
[424375015,1780816237000,-244.559637,0.0001437,2]
[424375021,1780816237000,-724.16537499,0.000158,2]
[424375018,1780816237000,-244.559637,0.00015531,2]
[424374979,1780816237000,-500.0,0.00011946,2]
[424375006,1780816237000,-500.0,0.00012872,2]
[424375003,1780816237000,-500.0,0.0001205,2]
[424375012,1780816237000,-500.0,0.00013698,2]
[424375001,1780816237000,-5000.0,0.00011949,2]
[424375000,1780816237000,-5000.0,0.00011949,2]
[424374986,1780816237000,-500.0,0.00011946,2]
[424374984,1780816237000,-500.0,0.00011946,2]
[424374985,1780816237000,-500.0,0.00011946,2]
[424374983,1780816237000,-500.0,0.00011946,2]
[424374989,1780816237000,-500.0,0.00011946,2]
[424374988,1780816237000,-500.0,0.00011946,2]
[424374990,1780816237000,-500.0,0.00011946,2]
[424374992,1780816237000,-500.0,0.00011946,2]
[424374987,1780816237000,-500.0,0.00011946,2]
[424374993,1780816237000,-500.0,0.00011946,2]
[424375002,1780816237000,-500.0,0.00012048,2]
[424374998,1780816237000,-200.0,0.00011946,2]
[424374996,1780816237000,-500.0,0.00011946,2]
[424374994,1780816237000,-500.0,0.00011946,2]
[424374999,1780816237000,-5000.0,0.00011949,2]
[424374995,1780816237000,-500.0,0.00011946,2]
[424374991,1780816237000,-500.0,0.00011946,2]
[424374997,1780816237000,-250.0,0.00011946,2]
[424375046,1780816238000,-186.0,0.00018277,2]
[424375056,1780816238000,-8552.8435489,0.00018933,2]
[424375054,1780816238000,-789.92,0.0001863,2]
[424375053,1780816238000,-276.9990796,0.0001863,2]
[424375058,1780816238000,-2089.79205976,0.00018992,2]
[424375052,1780816238000,-392.71442406,0.00018501,2]
[424375050,1780816238000,-161.36440571,0.00018481,2]
[424375048,1780816238000,-168.44572401,0.00018481,2]
[424375047,1780816238000,-175.98911164,0.00018449,2]
[424375045,1780816238000,-463.188,0.00018277,2]
[424375044,1780816238000,-422.35565052,0.00018245,7]
[424375041,1780816238000,-158.9945994,0.00017769,2]
[424375037,1780816238000,-155.21875911,0.00016767,2]
[424375038,1780816238000,-513.95031654,0.00016999,2]
[424375043,1780816238000,-154.35634394,0.00018245,7]
[424375039,1780816238000,-504.06807201,0.00016999,2]
[424375040,1780816238000,-265.5447816,0.00017613,2]
[424375036,1780816238000,-244.559637,0.00016691,2]
[424375034,1780816238000,-20577.83462501,0.000158,2]
[424375035,1780816238000,-244.559637,0.00016111,2]
[424375055,1780816238000,-789.92,0.00018904,2]
[424375042,1780816238000,-255.892484,0.00017769,2]
[424375057,1780816238000,-168.3149317,0.00018933,2]
[424375051,1780816238000,-197.39968328,0.00018481,2]
[424375059,1780816238000,-209.905,0.00019021,2]
[424375080,1780816238000,-796.86,0.00019178,2]
[424375082,1780816238000,-500.0,0.00019178,2]
[424375083,1780816238000,-500.0,0.00019178,2]
[424375079,1780816238000,-500.0,0.00019178,2]
[424375081,1780816238000,-3004.28,0.00019178,2]
[424375077,1780816238000,-1028.94,0.00019178,2]
[424375060,1780816238000,-150.55,0.00019072,2]
[424375076,1780816238000,-500.0,0.00019178,2]
[424375075,1780816238000,-500.0,0.00019178,2]
[424375073,1780816238000,-842.15,0.00019178,2]
[424375074,1780816238000,-500.0,0.00019178,2]
[424375078,1780816238000,-328.33556643,0.00019178,2]
[424375069,1780816238000,-320.85862911,0.00019178,2]
[424375064,1780816238000,-500.0,0.00019178,2]
[424375061,1780816238000,-151.002,0.00019072,2]
[424375062,1780816238000,-1415.0,0.00019072,2]
[424375065,1780816238000,-500.0,0.00019178,2]
[424375067,1780816238000,-500.0,0.00019178,2]
[424375063,1780816238000,-915.5815,0.00019178,2]
[424375066,1780816238000,-500.0,0.00019178,2]
[424375071,1780816238000,-500.0,0.00019178,2]
[424375072,1780816238000,-511.67,0.00019178,2]
[424375070,1780816238000,-577.5455324,0.00019178,2]
[424375068,1780816238000,-500.0,0.00019178,2]
[424375134,1780816239000,-1156.74,0.00019178,2]
[424375111,1780816239000,-686.03,0.00019178,2]
[424375113,1780816239000,-500.0,0.00019178,2]
[424375114,1780816239000,-2811.23,0.00019178,2]
[424375116,1780816239000,-794.64,0.00019178,2]
[424375115,1780816239000,-466.84083957,0.00019178,2]
[424375118,1780816239000,-564.97568845,0.00019178,2]
[424375117,1780816239000,-689.09,0.00019178,2]
[424375119,1780816239000,-1872.97,0.00019178,2]
[424375121,1780816239000,-500.0,0.00019178,2]
[424375133,1780816239000,-500.0,0.00019178,2]
[424375122,1780816239000,-500.0,0.00019178,2]
[424375127,1780816239000,-500.0,0.00019178,2]
[424375124,1780816239000,-500.0,0.00019178,2]
[424375123,1780816239000,-500.0,0.00019178,2]
[424375126,1780816239000,-500.0,0.00019178,2]
[424375125,1780816239000,-660.89,0.00019178,2]
[424375129,1780816239000,-915.09,0.00019178,2]
[424375128,1780816239000,-632.91,0.00019178,2]
[424375130,1780816239000,-500.0,0.00019178,2]
[424375131,1780816239000,-155.91741083,0.00019178,2]
[424375107,1780816239000,-788.92,0.00019178,2]
[424375120,1780816239000,-500.0,0.00019178,2]
[424375109,1780816239000,-500.0,0.00019178,2]
[424375097,1780816239000,-500.0,0.00019178,2]
[424375108,1780816239000,-500.0,0.00019178,2]
[424375084,1780816239000,-793.61,0.00019178,2]
[424375086,1780816239000,-553.09634011,0.00019178,2]
[424375088,1780816239000,-500.0,0.00019178,2]
[424375085,1780816239000,-500.0,0.00019178,2]
[424375087,1780816239000,-500.0,0.00019178,2]
[424375090,1780816239000,-500.0,0.00019178,2]
[424375089,1780816239000,-500.0,0.00019178,2]
[424375091,1780816239000,-1598.93,0.00019178,2]
[424375095,1780816239000,-500.0,0.00019178,2]
[424375094,1780816239000,-500.0,0.00019178,2]
[424375110,1780816239000,-1054.4,0.00019178,2]
[424375093,1780816239000,-500.0,0.00019178,2]
[424375096,1780816239000,-500.0,0.00019178,2]
[424375098,1780816239000,-500.0,0.00019178,2]
[424375099,1780816239000,-500.0,0.00019178,2]
[424375101,1780816239000,-500.0,0.00019178,2]
[424375100,1780816239000,-500.0,0.00019178,2]
[424375103,1780816239000,-500.0,0.00019178,2]
[424375102,1780816239000,-500.0,0.00019178,2]
[424375104,1780816239000,-500.0,0.00019178,2]
[424375105,1780816239000,-500.0,0.00019178,2]
[424375106,1780816239000,-500.0,0.00019178,2]
[424375092,1780816239000,-515.17511676,0.00019178,2]
[424375132,1780816239000,-500.0,0.00019178,2]
[424375112,1780816239000,-500.0,0.00019178,2]
[424375139,1780816239000,-500.0,0.00019178,2]
[424375164,1780816239000,-500.0,0.00019178,2]
[424375166,1780816239000,-783.94,0.00019178,2]
[424375165,1780816239000,-500.0,0.00019178,2]
[424375168,1780816239000,-500.0,0.00019178,2]
[424375167,1780816239000,-500.0,0.00019178,2]
[424375170,1780816239000,-500.0,0.00019178,2]
[424375175,1780816239000,-500.0,0.00019178,2]
[424375171,1780816239000,-500.0,0.00019178,2]
[424375173,1780816239000,-500.0,0.00019178,2]
[424375172,1780816239000,-500.0,0.00019178,2]
[424375163,1780816239000,-500.0,0.00019178,2]
[424375174,1780816239000,-500.0,0.00019178,2]
[424375176,1780816239000,-500.0,0.00019178,2]
[424375179,1780816239000,-597.85,0.00019178,2]
[424375180,1780816239000,-567.87,0.00019178,2]
[424375182,1780816239000,-500.0,0.00019178,2]
[424375181,1780816239000,-167.53822633,0.00019178,2]
[424375186,1780816239000,-500.0,0.00019178,2]
[424375183,1780816239000,-760.56,0.00019178,2]
[424375185,1780816239000,-5714.69,0.00019178,2]
[424375184,1780816239000,-1666.98,0.00019178,2]
[424375135,1780816239000,-670.2,0.00019178,2]
[424375177,1780816239000,-500.0,0.00019178,2]
[424375160,1780816239000,-500.0,0.00019178,2]
[424375169,1780816239000,-500.0,0.00019178,2]
[424375159,1780816239000,-581.63,0.00019178,2]
[424375161,1780816239000,-500.0,0.00019178,2]
[424375138,1780816239000,-500.0,0.00019178,2]
[424375136,1780816239000,-500.0,0.00019178,2]
[424375137,1780816239000,-344.96062849,0.00019178,2]
[424375141,1780816239000,-1306.21,0.00019178,2]
[424375140,1780816239000,-734.32,0.00019178,2]
[424375143,1780816239000,-500.0,0.00019178,2]
[424375145,1780816239000,-500.0,0.00019178,2]
[424375144,1780816239000,-500.0,0.00019178,2]
[424375147,1780816239000,-2284.02,0.00019178,2]
[424375146,1780816239000,-719.13,0.00019178,2]
[424375142,1780816239000,-500.0,0.00019178,2]
[424375155,1780816239000,-500.0,0.00019178,2]
[424375152,1780816239000,-344.75350635,0.00019178,2]
[424375148,1780816239000,-1181.08,0.00019178,2]
[424375151,1780816239000,-500.0,0.00019178,2]
[424375149,1780816239000,-500.0,0.00019178,2]
[424375154,1780816239000,-880.85,0.00019178,2]
[424375153,1780816239000,-500.0,0.00019178,2]
[424375156,1780816239000,-2075.61,0.00019178,2]
[424375158,1780816239000,-1621.08,0.00019178,2]
[424375157,1780816239000,-500.0,0.00019178,2]
[424375150,1780816239000,-500.0,0.00019178,2]
[424375162,1780816239000,-3056.08,0.00019178,2]
[424375227,1780816240000,-500.0,0.00019178,2]
[424375229,1780816240000,-500.0,0.00019178,2]
[424375219,1780816240000,-500.0,0.00019178,2]
[424375230,1780816240000,-500.0,0.00019178,2]
[424375228,1780816240000,-500.0,0.00019178,2]
[424375223,1780816240000,-1000.0,0.00019178,2]
[424375221,1780816240000,-982.73,0.00019178,2]
[424375224,1780816240000,-500.0,0.00019178,2]
[424375225,1780816240000,-991.49,0.00019178,2]
[424375222,1780816240000,-500.0,0.00019178,2]
[424375232,1780816240000,-826.86,0.00019178,2]
[424375226,1780816240000,-500.0,0.00019178,2]
[424375231,1780816240000,-500.0,0.00019178,2]
[424375245,1780816240000,-937.05,0.00019178,2]
[424375237,1780816240000,-1259.09,0.00019178,2]
[424375234,1780816240000,-1716.0,0.00019178,2]
[424375235,1780816240000,-443.69997864,0.00019178,2]
[424375236,1780816240000,-500.0,0.00019178,2]
[424375238,1780816240000,-500.0,0.00019178,2]
[424375240,1780816240000,-500.0,0.00019178,2]
[424375241,1780816240000,-3076.17,0.00019178,2]
[424375239,1780816240000,-500.0,0.00019178,2]
[424375242,1780816240000,-1173.68,0.00019178,2]
[424375244,1780816240000,-500.0,0.00019178,2]
[424375243,1780816240000,-500.0,0.00019178,2]
[424375246,1780816240000,-500.0,0.00019178,2]
[424375220,1780816240000,-891.35,0.00019178,2]
[424375233,1780816240000,-1095.17,0.00019178,2]
[424375218,1780816240000,-368.63982151,0.00019178,2]
[424375190,1780816240000,-500.0,0.00019178,2]
[424375216,1780816240000,-500.0,0.00019178,2]
[424375187,1780816240000,-500.0,0.00019178,2]
[424375189,1780816240000,-500.0,0.00019178,2]
[424375188,1780816240000,-500.0,0.00019178,2]
[424375191,1780816240000,-458.85600637,0.00019178,2]
[424375247,1780816240000,-1945.6,0.00019178,2]
[424375193,1780816240000,-500.0,0.00019178,2]
[424375192,1780816240000,-645.84018547,0.00019178,2]
[424375195,1780816240000,-500.0,0.00019178,2]
[424375194,1780816240000,-819.57,0.00019178,2]
[424375196,1780816240000,-500.0,0.00019178,2]
[424375198,1780816240000,-500.0,0.00019178,2]
[424375197,1780816240000,-500.0,0.00019178,2]
[424375199,1780816240000,-500.0,0.00019178,2]
[424375215,1780816240000,-500.0,0.00019178,2]
[424375200,1780816240000,-263.67794471,0.00019178,2]
[424375203,1780816240000,-2066.47,0.00019178,2]
[424375202,1780816240000,-1503.59,0.00019178,2]
[424375204,1780816240000,-895.7,0.00019178,2]
[424375205,1780816240000,-1214.49,0.00019178,2]
[424375207,1780816240000,-4087.13,0.00019178,2]
[424375206,1780816240000,-500.0,0.00019178,2]
[424375208,1780816240000,-500.0,0.00019178,2]
[424375209,1780816240000,-500.0,0.00019178,2]
[424375210,1780816240000,-623.67,0.00019178,2]
[424375211,1780816240000,-1082.51,0.00019178,2]
[424375214,1780816240000,-500.0,0.00019178,2]
[424375213,1780816240000,-500.0,0.00019178,2]
[424375212,1780816240000,-1633.68,0.00019178,2]
[424375201,1780816240000,-651.5,0.00019178,2]
[424375249,1780816240000,-500.0,0.00019178,2]
[424375217,1780816240000,-500.0,0.00019178,2]
[424375250,1780816240000,-500.0,0.00019178,2]
[424375283,1780816240000,-539.26,0.00019178,2]
[424375281,1780816240000,-535.92,0.00019178,2]
[424375284,1780816240000,-6731.58,0.00019178,2]
[424375288,1780816240000,-500.0,0.00019178,2]
[424375285,1780816240000,-500.0,0.00019178,2]
[424375287,1780816240000,-1190.88,0.00019178,2]
[424375290,1780816240000,-839.18,0.00019178,2]
[424375293,1780816240000,-937.15,0.00019178,2]
[424375295,1780816240000,-500.0,0.00019178,2]
[424375294,1780816240000,-967.63,0.00019178,2]
[424375297,1780816240000,-500.0,0.00019178,2]
[424375299,1780816240000,-596.62,0.00019178,2]
[424375305,1780816240000,-500.0,0.00019178,2]
[424375307,1780816240000,-1098.04,0.00019178,2]
[424375309,1780816240000,-500.0,0.00019178,2]
[424375313,1780816240000,-500.0,0.00019178,2]
[424375300,1780816240000,-916.42,0.00019178,2]
[424375304,1780816240000,-897.4,0.00019178,2]
[424375314,1780816240000,-500.0,0.00019178,2]
[424375303,1780816240000,-778.1,0.00019178,2]
[424375310,1780816240000,-527.45,0.00019178,2]
[424375298,1780816240000,-500.0,0.00019178,2]
[424375301,1780816240000,-736.52,0.00019178,2]
[424375296,1780816240000,-620.20708996,0.00019178,2]
[424375306,1780816240000,-205.06090125,0.00019178,2]
[424375311,1780816240000,-1123.2,0.00019178,2]
[424375312,1780816240000,-500.0,0.00019178,2]
[424375292,1780816240000,-500.0,0.00019178,2]
[424375280,1780816240000,-500.0,0.00019178,2]
[424375302,1780816240000,-1574.47,0.00019178,2]
[424375276,1780816240000,-500.0,0.00019178,2]
[424375248,1780816240000,-652.7,0.00019178,2]
[424375253,1780816240000,-655.68,0.00019178,2]
[424375308,1780816240000,-500.0,0.00019178,2]
[424375254,1780816240000,-500.0,0.00019178,2]
[424375255,1780816240000,-938.97,0.00019178,2]
[424375257,1780816240000,-500.0,0.00019178,2]
[424375256,1780816240000,-500.0,0.00019178,2]
[424375259,1780816240000,-950.39,0.00019178,2]
[424375260,1780816240000,-500.0,0.00019178,2]
[424375258,1780816240000,-554.55,0.00019178,2]
[424375262,1780816240000,-2679.02,0.00019178,2]
[424375263,1780816240000,-619.91,0.00019178,2]
[424375261,1780816240000,-500.0,0.00019178,2]
[424375264,1780816240000,-500.0,0.00019178,2]
[424375252,1780816240000,-500.0,0.00019178,2]
[424375265,1780816240000,-500.0,0.00019178,2]
[424375266,1780816240000,-1486.08,0.00019178,2]
[424375279,1780816240000,-500.0,0.00019178,2]
[424375278,1780816240000,-1956.26,0.00019178,2]
[424375277,1780816240000,-500.0,0.00019178,2]
[424375275,1780816240000,-500.0,0.00019178,2]